[Event "*** Titled Tuesday Blitz"]
[Site "Chess.com"]
[Date "2021.02.09"]
[Round "6"]
[White "Chandradi"]
[Black "KeithArkell"]
[Result "0-1"]
[WhiteElo "2335"]
[BlackElo "2489"]
[TimeControl "180+1"]
[EndTime "11:10:40 PST"]
[Termination "KeithArkell won by resignation"]

1. Nf3 {[%clk 0:02:56.4]} 1... Nf6 {[%clk 0:02:59.4]} 2. g3 {[%clk 0:02:55.1]}
2... b5 {[%clk 0:02:58.9]} 3. Bg2 {[%clk 0:02:54.5]} 3... Bb7 {[%clk 0:02:59.2]}
4. b3 {[%clk 0:02:54.4]} 4... b4 {[%clk 0:02:58.6]} 5. a3 {[%clk 0:02:52.9]}
5... a5 {[%clk 0:02:57.9]} 6. Bb2 {[%clk 0:02:52.4]} 6... e6 {[%clk 0:02:57.9]}
7. O-O {[%clk 0:02:52]} 7... Be7 {[%clk 0:02:58]} 8. c4 {[%clk 0:02:51.8]} 8...
bxc3 {[%clk 0:02:57.7]} 9. Bxc3 {[%clk 0:02:47.7]} 9... d5 {[%clk 0:02:51.7]}
10. d3 {[%clk 0:02:46.1]} 10... Nbd7 {[%clk 0:02:51.4]} 11. Nbd2 {[%clk
0:02:45.3]} 11... O-O {[%clk 0:02:49.7]} 12. Qb1 {[%clk 0:02:45.2]} 12... c5
{[%clk 0:02:46.5]} 13. d4 {[%clk 0:02:44.9]} 13... cxd4 {[%clk 0:02:45.7]} 14.
Bxd4 {[%clk 0:02:43.7]} 14... Bd6 {[%clk 0:02:27.9]} 15. Qb2 {[%clk 0:02:40.3]}
15... Qe7 {[%clk 0:02:26.9]} 16. Ne5 {[%clk 0:02:37.3]} 16... Nxe5 {[%clk
0:02:26.2]} 17. Bxe5 {[%clk 0:02:38.2]} 17... Bxe5 {[%clk 0:02:20.8]} 18. Qxe5
{[%clk 0:02:39.1]} 18... Rfc8 {[%clk 0:02:21]} 19. Qb2 {[%clk 0:02:30.3]} 19...
Rc7 {[%clk 0:02:16.9]} 20. Rfc1 {[%clk 0:02:28.4]} 20... Rac8 {[%clk 0:02:17]}
21. e3 {[%clk 0:02:20]} 21... h6 {[%clk 0:02:17.1]} 22. h3 {[%clk 0:02:13.2]}
22... Rc5 {[%clk 0:02:16.7]} 23. Nf3 {[%clk 0:01:57.4]} 23... Qc7 {[%clk
0:02:10.4]} 24. Rxc5 {[%clk 0:01:56.8]} 24... Qxc5 {[%clk 0:02:11.3]} 25. Nd4
{[%clk 0:01:56.9]} 25... Qc3 {[%clk 0:02:06.4]} 26. Qxc3 {[%clk 0:01:51.3]}
26... Rxc3 {[%clk 0:02:05]} 27. b4 {[%clk 0:01:51.8]} 27... a4 {[%clk
0:01:50.5]} 28. Bf1 {[%clk 0:01:46.6]} 28... Bc8 {[%clk 0:01:48.4]} 29. Nb5
{[%clk 0:01:22.6]} 29... Rc2 {[%clk 0:01:37.6]} 30. Nd4 {[%clk 0:01:09.5]} 30...
Rc3 {[%clk 0:01:37]} 31. Nb5 {[%clk 0:01:08.8]} 31... Rc2 {[%clk 0:01:37.2]} 32.
Nd4 {[%clk 0:01:08.7]} 32... Rb2 {[%clk 0:01:36.3]} 33. Bb5 {[%clk 0:00:55.9]}
33... Bd7 {[%clk 0:01:34.7]} 34. Bxd7 {[%clk 0:00:53.9]} 34... Nxd7 {[%clk
0:01:35.6]} 35. Rc1 {[%clk 0:00:53.9]} 35... Ra2 {[%clk 0:01:19]} 36. b5 {[%clk
0:00:42.8]} 36... Rxa3 {[%clk 0:01:13.2]} 37. Rc8+ {[%clk 0:00:42.7]} 37... Kh7
{[%clk 0:01:12.5]} 38. Rc7 {[%clk 0:00:42.9]} 38... Ne5 {[%clk 0:01:12]} 39. b6
{[%clk 0:00:40.8]} 39... Ra1+ {[%clk 0:01:09.7]} 40. Kg2 {[%clk 0:00:40]} 40...
Rb1 {[%clk 0:01:10]} 41. Ra7 {[%clk 0:00:22.5]} 41... Rxb6 {[%clk 0:01:08.1]}
42. Rxa4 {[%clk 0:00:22.6]} 42... Rb7 {[%clk 0:01:08.3]} 43. Ra3 {[%clk
0:00:18.6]} 43... Nc4 {[%clk 0:01:06.4]} 44. Rc3 {[%clk 0:00:18.2]} 44... Nd6
{[%clk 0:01:01.4]} 45. Rc2 {[%clk 0:00:17]} 45... g5 {[%clk 0:01:00.7]} 46. g4
{[%clk 0:00:16.2]} 46... Kg6 {[%clk 0:01:00.6]} 47. Nc6 {[%clk 0:00:15.9]} 47...
Nc4 {[%clk 0:00:50.6]} 48. Nd4 {[%clk 0:00:13.6]} 48... Rc7 {[%clk 0:00:46]} 49.
Kf3 {[%clk 0:00:11.6]} 49... Kf6 {[%clk 0:00:45.5]} 50. Ke2 {[%clk 0:00:11.2]}
50... Ke5 {[%clk 0:00:41.3]} 51. Nf3+ {[%clk 0:00:11.2]} 51... Kd6 {[%clk
0:00:40.8]} 52. Nd4 {[%clk 0:00:11.8]} 52... Rb7 {[%clk 0:00:39.3]} 53. Nf3
{[%clk 0:00:11.7]} 53... e5 {[%clk 0:00:38.6]} 54. e4 {[%clk 0:00:09.8]} 54...
Rb2 {[%clk 0:00:34.8]} 55. Rxb2 {[%clk 0:00:08.6]} 55... Nxb2 {[%clk 0:00:35.7]}
56. exd5 {[%clk 0:00:09.1]} 56... Kxd5 {[%clk 0:00:36.6]} 57. Nd2 {[%clk
0:00:09.2]} 57... Nc4 {[%clk 0:00:36]} 58. Nf1 {[%clk 0:00:08.6]} 58... Nd6
{[%clk 0:00:31.6]} 59. Ng3 {[%clk 0:00:08.7]} 59... Ke6 {[%clk 0:00:29.4]} 60.
Ke3 {[%clk 0:00:08.8]} 60... f5 {[%clk 0:00:30]} 61. Ke2 {[%clk 0:00:05.1]}
61... f4 {[%clk 0:00:30.2]} 62. Nf1 {[%clk 0:00:03.2]} 62... e4 {[%clk
0:00:30.7]} 63. Nd2 {[%clk 0:00:03.1]} 63... Kd5 {[%clk 0:00:30.4]} 64. Nb3
{[%clk 0:00:03.1]} 64... f3+ {[%clk 0:00:28.7]} 65. Kd2 {[%clk 0:00:02.5]} 65...
Nc4+ {[%clk 0:00:21]} 66. Ke1 {[%clk 0:00:03]} 66... Ne5 {[%clk 0:00:21]} 67.
Nd2 {[%clk 0:00:03.3]} 67... Nd3+ {[%clk 0:00:21]} 68. Kf1 {[%clk 0:00:03.9]}
68... Nf4 {[%clk 0:00:21.9]} 69. Nb3 {[%clk 0:00:03.8]} 69... Nxh3 {[%clk
0:00:21.6]} 70. Nd2 {[%clk 0:00:04.5]} 70... Nf4 {[%clk 0:00:19.3]} 71. Nb1
{[%clk 0:00:05.3]} 71... Ng6 {[%clk 0:00:16.8]} 72. Nc3+ {[%clk 0:00:05.8]}
72... Ke5 {[%clk 0:00:16.8]} 73. Ke1 {[%clk 0:00:05.9]} 73... Kf4 {[%clk
0:00:17.1]} 74. Kd2 {[%clk 0:00:05.6]} 74... Ne5 {[%clk 0:00:17.2]} 75. Nd5+
{[%clk 0:00:05.3]} 75... Kxg4 {[%clk 0:00:16.9]} 76. Ke3 {[%clk 0:00:05.8]}
76... Kf5 {[%clk 0:00:14]} 77. Ne7+ {[%clk 0:00:06.2]} 77... Ke6 {[%clk
0:00:13.5]} 78. Ng8 {[%clk 0:00:06.8]} 78... h5 {[%clk 0:00:11]} 79. Kxe4 {[%clk
0:00:07.1]} 79... g4 {[%clk 0:00:11.6]} 80. Nh6 {[%clk 0:00:07.2]} 80... Kf6
{[%clk 0:00:10.9]} 81. Nf5 {[%clk 0:00:07.4]} 81... Nf7 {[%clk 0:00:10.3]} 82.
Ng3 {[%clk 0:00:07.6]} 82... Kg5 {[%clk 0:00:09.5]} 83. Ke3 {[%clk 0:00:07.4]}
83... h4 {[%clk 0:00:09.8]} 84. Ne4+ {[%clk 0:00:08.3]} 84... Kf5 {[%clk
0:00:10]} 85. Nd2 {[%clk 0:00:08.6]} 85... Nd8 {[%clk 0:00:08.9]} 86. Nc4 {[%clk
0:00:08.7]} 86... Kg5 {[%clk 0:00:09.1]} 87. Ne5 {[%clk 0:00:08.9]} 87... Ne6
{[%clk 0:00:09.5]} 88. Nd3 {[%clk 0:00:09.4]} 88... h3 {[%clk 0:00:09.4]} 89.
Ne1 {[%clk 0:00:09.8]} 89... h2 {[%clk 0:00:08.3]} 0-1

[Event "*** Titled Tuesday Blitz"]
[Site "Chess.com"]
[Date "2021.02.09"]
[Round "6"]
[White "mbojan"]
[Black "AwareIdea"]
[Result "1/2-1/2"]
[WhiteElo "2626"]
[BlackElo "2478"]
[TimeControl "180+1"]
[EndTime "11:10:45 PST"]
[Termination "Game drawn - insufficient material"]

1. Nf3 {[%clk 0:03:00.9]} 1... d5 {[%clk 0:02:59.7]} 2. c4 {[%clk 0:02:59.8]}
2... e6 {[%clk 0:02:59.4]} 3. d4 {[%clk 0:02:58.1]} 3... Nf6 {[%clk 0:02:57.1]}
4. g3 {[%clk 0:02:58.3]} 4... dxc4 {[%clk 0:02:54.9]} 5. Bg2 {[%clk 0:02:50.9]}
5... Bd7 {[%clk 0:02:51.3]} 6. O-O {[%clk 0:02:35.8]} 6... Bc6 {[%clk
0:02:51.1]} 7. Bg5 {[%clk 0:02:28.7]} 7... h6 {[%clk 0:02:49.6]} 8. Bxf6 {[%clk
0:02:28.1]} 8... Qxf6 {[%clk 0:02:50.5]} 9. Nbd2 {[%clk 0:02:28.2]} 9... b5
{[%clk 0:02:45.3]} 10. a4 {[%clk 0:02:20.8]} 10... a6 {[%clk 0:02:44.7]} 11. Ne5
{[%clk 0:02:00.4]} 11... Bxg2 {[%clk 0:02:42.8]} 12. Kxg2 {[%clk 0:02:01.3]}
12... c6 {[%clk 0:02:35.3]} 13. axb5 {[%clk 0:02:00.6]} 13... cxb5 {[%clk
0:02:36.1]} 14. Ndxc4 {[%clk 0:02:01.2]} 14... Qd8 {[%clk 0:02:27]} 15. Ne3
{[%clk 0:01:35.3]} 15... Bd6 {[%clk 0:02:23.8]} 16. Nf3 {[%clk 0:01:31]} 16...
O-O {[%clk 0:02:23.2]} 17. Qc2 {[%clk 0:01:26]} 17... Nd7 {[%clk 0:02:20.7]} 18.
Qc6 {[%clk 0:01:11.6]} 18... Nb6 {[%clk 0:02:08.5]} 19. Rfc1 {[%clk 0:01:03.1]}
19... Qb8 {[%clk 0:02:06.4]} 20. b3 {[%clk 0:00:57.1]} 20... Rc8 {[%clk
0:01:57.1]} 21. Qe4 {[%clk 0:00:56.8]} 21... a5 {[%clk 0:01:51.3]} 22. Rxc8+
{[%clk 0:00:41.3]} 22... Qxc8 {[%clk 0:01:52.2]} 23. d5 {[%clk 0:00:34.9]} 23...
a4 {[%clk 0:01:38.9]} 24. bxa4 {[%clk 0:00:24.3]} 24... bxa4 {[%clk 0:01:35.7]}
25. dxe6 {[%clk 0:00:18.9]} 25... Qxe6 {[%clk 0:01:34.8]} 26. Qxe6 {[%clk
0:00:18.1]} 26... fxe6 {[%clk 0:01:35.7]} 27. Nd4 {[%clk 0:00:18.7]} 27... Kf7
{[%clk 0:01:33.7]} 28. Nb5 {[%clk 0:00:18.9]} 28... Be7 {[%clk 0:01:31.3]} 29.
Nc2 {[%clk 0:00:16.7]} 29... Rc8 {[%clk 0:01:23.8]} 30. Nca3 {[%clk 0:00:13.1]}
30... Rd8 {[%clk 0:01:16]} 31. Kf3 {[%clk 0:00:10.1]} 31... Rd2 {[%clk
0:01:14.7]} 32. Nc3 {[%clk 0:00:06.7]} 32... Nd5 {[%clk 0:00:59.8]} 33. Nxd5
{[%clk 0:00:06.9]} 33... exd5 {[%clk 0:01:00.6]} 34. Nb5 {[%clk 0:00:06.1]}
34... Rb2 {[%clk 0:00:55.8]} 35. Nc7 {[%clk 0:00:04.9]} 35... a3 {[%clk
0:00:40]} 36. Nxd5 {[%clk 0:00:04.9]} 36... a2 {[%clk 0:00:31.8]} 37. Nc3 {[%clk
0:00:03.3]} 37... Rb3 {[%clk 0:00:29.6]} 38. Rxa2 {[%clk 0:00:01.5]} 38... Rxc3+
{[%clk 0:00:29.8]} 39. e3 {[%clk 0:00:02.2]} 39... Bf6 {[%clk 0:00:26.9]} 40. h4
{[%clk 0:00:02.5]} 40... h5 {[%clk 0:00:26.4]} 41. Ke2 {[%clk 0:00:02.3]} 41...
Rb3 {[%clk 0:00:26.1]} 42. Ra5 {[%clk 0:00:02]} 42... Rb2+ {[%clk 0:00:25.1]}
43. Kf3 {[%clk 0:00:01.6]} 43... Kg6 {[%clk 0:00:25.1]} 44. Rc5 {[%clk
0:00:01.4]} 44... Rd2 {[%clk 0:00:24.6]} 45. Rc1 {[%clk 0:00:01.9]} 45... Be5
{[%clk 0:00:22.8]} 46. Rf1 {[%clk 0:00:02.6]} 46... Kf5 {[%clk 0:00:21.8]} 47.
Rc1 {[%clk 0:00:03.1]} 47... Ra2 {[%clk 0:00:19.2]} 48. Rf1 {[%clk 0:00:03.6]}
48... g6 {[%clk 0:00:19.1]} 49. Rc1 {[%clk 0:00:03.7]} 49... Ra4 {[%clk
0:00:17.6]} 50. Rc2 {[%clk 0:00:03.9]} 50... Ra3 {[%clk 0:00:17.6]} 51. Rd2
{[%clk 0:00:04]} 51... Rc3 {[%clk 0:00:17.9]} 52. Rd5 {[%clk 0:00:03.7]} 52...
Ke6 {[%clk 0:00:17.8]} 53. Ra5 {[%clk 0:00:03.6]} 53... Rc4 {[%clk 0:00:18]} 54.
Ra6+ {[%clk 0:00:03.9]} 54... Bd6 {[%clk 0:00:18.4]} 55. Ra5 {[%clk 0:00:04.8]}
55... Rc5 {[%clk 0:00:18.3]} 56. Ra6 {[%clk 0:00:05]} 56... g5 {[%clk
0:00:18.2]} 57. hxg5 {[%clk 0:00:04.9]} 57... Rxg5 {[%clk 0:00:19.1]} 58. Ke4
{[%clk 0:00:05.3]} 58... Rf5 {[%clk 0:00:19]} 59. f4 {[%clk 0:00:05.4]} 59...
Rb5 {[%clk 0:00:19.2]} 60. Kf3 {[%clk 0:00:03.9]} 60... Rb1 {[%clk 0:00:17.6]}
61. Ra5 {[%clk 0:00:03.5]} 61... Rh1 {[%clk 0:00:13.3]} 62. e4 {[%clk
0:00:03.6]} 62... Rh2 {[%clk 0:00:12.3]} 63. e5 {[%clk 0:00:02.1]} 63... Be7
{[%clk 0:00:12]} 64. Ke4 {[%clk 0:00:01.7]} 64... Re2+ {[%clk 0:00:11.7]} 65.
Kf3 {[%clk 0:00:02.3]} 65... Rb2 {[%clk 0:00:10.9]} 66. Ra6+ {[%clk 0:00:02.3]}
66... Kf5 {[%clk 0:00:11.3]} 67. Rh6 {[%clk 0:00:02.7]} 67... Rb3+ {[%clk
0:00:11.5]} 68. Kg2 {[%clk 0:00:02.8]} 68... Kg4 {[%clk 0:00:10]} 69. Rg6+
{[%clk 0:00:02.9]} 69... Kf5 {[%clk 0:00:10.4]} 70. Rh6 {[%clk 0:00:03.6]} 70...
h4 {[%clk 0:00:10.7]} 71. Rh5+ {[%clk 0:00:03.2]} 71... Kg4 {[%clk 0:00:10.5]}
72. Rh7 {[%clk 0:00:02.3]} 72... Rb2+ {[%clk 0:00:10.4]} 73. Kf1 {[%clk
0:00:01.9]} 73... Rb1+ {[%clk 0:00:08.7]} 74. Ke2 {[%clk 0:00:02.3]} 74... hxg3
{[%clk 0:00:08.9]} 75. Rxe7 {[%clk 0:00:01.5]} 75... Kxf4 {[%clk 0:00:09]} 76.
Rg7 {[%clk 0:00:01.7]} 76... Rb2+ {[%clk 0:00:08.8]} 77. Kf1 {[%clk 0:00:02]}
77... Kf3 {[%clk 0:00:08.6]} 78. Rf7+ {[%clk 0:00:01.9]} 78... Ke4 {[%clk
0:00:08.8]} 79. e6 {[%clk 0:00:02.2]} 79... Rb8 {[%clk 0:00:05.6]} 80. e7 {[%clk
0:00:01.8]} 80... Re8 {[%clk 0:00:05.8]} 81. Kg2 {[%clk 0:00:02.4]} 81... Ke5
{[%clk 0:00:06.1]} 82. Rf8 {[%clk 0:00:03]} 82... Rxe7 {[%clk 0:00:04.8]} 83.
Rf3 {[%clk 0:00:03.9]} 83... Ke6 {[%clk 0:00:04.8]} 84. Re3+ {[%clk 0:00:04.1]}
84... Kf6 {[%clk 0:00:04.8]} 85. Rxe7 {[%clk 0:00:05]} 85... Kxe7 {[%clk
0:00:05.1]} 86. Kxg3 {[%clk 0:00:05.9]} 1/2-1/2

[Event "*** Titled Tuesday Blitz"]
[Site "Chess.com"]
[Date "2021.02.09"]
[Round "6"]
[White "Problematique_99"]
[Black "Fighterman91"]
[Result "0-1"]
[WhiteElo "2453"]
[BlackElo "2661"]
[TimeControl "180+1"]
[EndTime "11:10:55 PST"]
[Termination "Fighterman91 won by resignation"]

1. e4 {[%clk 0:03:00.9]} 1... c5 {[%clk 0:02:59]} 2. Nc3 {[%clk 0:02:57.4]} 2...
Nc6 {[%clk 0:02:55.3]} 3. f4 {[%clk 0:02:57.5]} 3... g6 {[%clk 0:02:54]} 4. Nf3
{[%clk 0:02:57.7]} 4... Bg7 {[%clk 0:02:54.8]} 5. Bb5 {[%clk 0:02:57.8]} 5...
Nd4 {[%clk 0:02:53.5]} 6. O-O {[%clk 0:02:57.8]} 6... Nxb5 {[%clk 0:02:52.7]} 7.
Nxb5 {[%clk 0:02:57.8]} 7... a6 {[%clk 0:02:45]} 8. Nc3 {[%clk 0:02:56.8]} 8...
d6 {[%clk 0:02:44.3]} 9. d3 {[%clk 0:02:56.9]} 9... b5 {[%clk 0:02:40]} 10. Qe1
{[%clk 0:02:50.8]} 10... b4 {[%clk 0:02:33.7]} 11. Nd5 {[%clk 0:02:47.5]} 11...
e6 {[%clk 0:02:24.8]} 12. Ne3 {[%clk 0:02:47]} 12... Ne7 {[%clk 0:02:21.1]} 13.
a3 {[%clk 0:02:42.2]} 13... Rb8 {[%clk 0:02:13.4]} 14. axb4 {[%clk 0:02:41.6]}
14... cxb4 {[%clk 0:02:09.6]} 15. Nc4 {[%clk 0:02:28]} 15... O-O {[%clk
0:02:06.5]} 16. Be3 {[%clk 0:02:23.5]} 16... Bb7 {[%clk 0:01:57.8]} 17. Na5
{[%clk 0:01:58]} 17... Ba8 {[%clk 0:01:55.4]} 18. c3 {[%clk 0:01:45.6]} 18... d5
{[%clk 0:01:48.2]} 19. Ba7 {[%clk 0:01:37.3]} 19... dxe4 {[%clk 0:01:46.4]} 20.
dxe4 {[%clk 0:01:34.3]} 20... bxc3 {[%clk 0:01:28.6]} 21. bxc3 {[%clk
0:01:30.2]} 21... Rc8 {[%clk 0:01:18.8]} 22. c4 {[%clk 0:01:21.3]} 22... Bxa1
{[%clk 0:01:07.4]} 23. Qxa1 {[%clk 0:01:22.2]} 23... Bxe4 {[%clk 0:01:07.9]} 24.
Ne5 {[%clk 0:00:57.2]} 24... Nf5 {[%clk 0:00:49.5]} 25. Ng4 {[%clk 0:00:53.4]}
25... f6 {[%clk 0:00:49.7]} 26. Re1 {[%clk 0:00:48.7]} 26... Qe7 {[%clk
0:00:26.4]} 27. Bf2 {[%clk 0:00:38.3]} 27... Ba8 {[%clk 0:00:26.9]} 28. c5
{[%clk 0:00:32.4]} 28... h5 {[%clk 0:00:27.2]} 29. Ne3 {[%clk 0:00:31.4]} 29...
Nxe3 {[%clk 0:00:27.6]} 30. Bxe3 {[%clk 0:00:31.7]} 30... e5 {[%clk 0:00:25.3]}
31. fxe5 {[%clk 0:00:28.9]} 31... Qxe5 {[%clk 0:00:26.2]} 32. Bd4 {[%clk
0:00:26.1]} 32... Qd5 {[%clk 0:00:26.4]} 33. Qb2 {[%clk 0:00:25]} 33... Rxc5
{[%clk 0:00:26.6]} 34. Nb3 {[%clk 0:00:19.7]} 34... Rb5 {[%clk 0:00:26.5]} 35.
Re3 {[%clk 0:00:17.3]} 35... Rfb8 {[%clk 0:00:24.7]} 36. Qc2 {[%clk 0:00:14]}
36... Qxg2+ {[%clk 0:00:21.4]} 37. Qxg2 {[%clk 0:00:13.3]} 37... Bxg2 {[%clk
0:00:22.3]} 38. Nc5 {[%clk 0:00:13.8]} 38... Rxc5 {[%clk 0:00:14.9]} 39. Bxc5
{[%clk 0:00:13.7]} 39... Bd5 {[%clk 0:00:15.3]} 40. Rd3 {[%clk 0:00:13.6]} 40...
Be4 {[%clk 0:00:12.2]} 41. Rd6 {[%clk 0:00:14.5]} 41... Rb5 {[%clk 0:00:10.4]}
42. Bd4 {[%clk 0:00:14.2]} 42... Rg5+ {[%clk 0:00:10.2]} 43. Kf2 {[%clk
0:00:13.8]} 43... Rf5+ {[%clk 0:00:10.1]} 44. Ke3 {[%clk 0:00:14.1]} 44... Bd5
{[%clk 0:00:08.4]} 45. Bxf6 {[%clk 0:00:13]} 45... Kf7 {[%clk 0:00:07.8]} 46.
Bd4 {[%clk 0:00:11.3]} 46... Rf3+ {[%clk 0:00:07.7]} 47. Ke2 {[%clk 0:00:11.5]}
47... Be4 {[%clk 0:00:08.1]} 48. Rxa6 {[%clk 0:00:09]} 48... Rh3 {[%clk
0:00:09]} 49. Ra7+ {[%clk 0:00:09.2]} 49... Ke6 {[%clk 0:00:08]} 50. Bg1 {[%clk
0:00:09.1]} 50... g5 {[%clk 0:00:06.1]} 51. Ra6+ {[%clk 0:00:09.2]} 51... Kf5
{[%clk 0:00:06.7]} 52. Ra5+ {[%clk 0:00:09.7]} 52... Kf4 {[%clk 0:00:07.2]} 53.
Ra4 {[%clk 0:00:10.1]} 53... Rb3 {[%clk 0:00:06.9]} 54. Bd4 {[%clk 0:00:09.1]}
54... g4 {[%clk 0:00:06]} 55. Ra5 {[%clk 0:00:09]} 55... Bf3+ {[%clk 0:00:05.8]}
56. Kf2 {[%clk 0:00:08.7]} 56... Ke4 {[%clk 0:00:06.3]} 57. Ba7 {[%clk
0:00:07.8]} 57... h4 {[%clk 0:00:06.7]} 58. Ra4+ {[%clk 0:00:08.1]} 58... Kf5
{[%clk 0:00:06.8]} 59. Ra5+ {[%clk 0:00:08.6]} 59... Ke4 {[%clk 0:00:07.2]} 60.
Ra4+ {[%clk 0:00:08.6]} 60... Kd3 {[%clk 0:00:07.8]} 61. Rd4+ {[%clk 0:00:08]}
61... Kc3 {[%clk 0:00:08.4]} 62. Rd7 {[%clk 0:00:07.5]} 62... Rb2+ {[%clk
0:00:08.7]} 63. Ke3 {[%clk 0:00:07.9]} 63... Rxh2 {[%clk 0:00:07.9]} 64. Bd4+
{[%clk 0:00:08.6]} 64... Kc4 {[%clk 0:00:07.9]} 65. Rc7+ {[%clk 0:00:09.5]}
65... Kd5 {[%clk 0:00:06.5]} 66. Rc5+ {[%clk 0:00:10.1]} 66... Ke6 {[%clk
0:00:07.1]} 67. Re5+ {[%clk 0:00:09.8]} 67... Kf7 {[%clk 0:00:07.3]} 68. Rf5+
{[%clk 0:00:10.1]} 68... Kg6 {[%clk 0:00:07.7]} 69. Kf4 {[%clk 0:00:10.4]} 69...
Rd2 {[%clk 0:00:05.6]} 70. Rf6+ {[%clk 0:00:09.3]} 70... Kh5 {[%clk 0:00:04.8]}
71. Be5 {[%clk 0:00:07.5]} 71... Ra2 {[%clk 0:00:04.6]} 72. Rf7 {[%clk
0:00:06.9]} 72... Ra4+ {[%clk 0:00:04.9]} 73. Kf5 {[%clk 0:00:07.4]} 73... Be4+
{[%clk 0:00:05.4]} 74. Kf6 {[%clk 0:00:07.2]} 74... Bg6 {[%clk 0:00:05.8]} 75.
Rg7 {[%clk 0:00:06.9]} 75... Ra6+ {[%clk 0:00:06.2]} 76. Ke7 {[%clk 0:00:07.3]}
76... g3 {[%clk 0:00:06.7]} 77. Rg8 {[%clk 0:00:06.7]} 77... Kg4 {[%clk
0:00:07.2]} 78. Bd6 {[%clk 0:00:05.7]} 78... Rxd6 {[%clk 0:00:05.3]} 79. Kxd6
{[%clk 0:00:05.3]} 79... Kg5 {[%clk 0:00:05.6]} 80. Rc8 {[%clk 0:00:04.1]} 80...
g2 {[%clk 0:00:05.1]} 81. Rc1 {[%clk 0:00:05]} 81... h3 {[%clk 0:00:05.5]} 82.
Rg1 {[%clk 0:00:03.9]} 82... Kg4 {[%clk 0:00:05.8]} 83. Rxg2+ {[%clk 0:00:04.8]}
83... hxg2 {[%clk 0:00:06]} 84. Ke5 {[%clk 0:00:05.7]} 84... g1=Q {[%clk
0:00:06.9]} 0-1